fUST/lending_fUST_20250822
["ID","MTS","AMOUNT","RATE_DAILY","PERIOD"]
[380515966,1755798665195,-5081.96,0.00021878,2]
[380515967,1755798665204,-1099.74,0.00021878,2]
[380515968,1755798665214,-480.0,0.00021878,2]
[380515969,1755798665223,-480.0,0.00021878,2]
[380515970,1755798665232,-754.87,0.00021878,2]
[380515971,1755798665241,-442.38419163,0.00021878,2]
[380515972,1755798665250,-4586.59,0.00021878,2]
[380515973,1755798665259,-4179.87,0.00021878,2]
[380515974,1755798665269,-3124.04,0.00021878,2]
[380515975,1755798665278,-595.07,0.00021878,2]
[380515976,1755798665287,-520.08554025,0.00021878,2]
[380515977,1755798665297,-2044.44,0.00021878,2]
[380515978,1755798665307,-889.73,0.00021878,2]
[380515979,1755798665316,-2890.7,0.00021878,2]
[380515980,1755798665325,-480.0,0.00021878,2]
[380515981,1755798665335,-876.44,0.00021878,2]
[380515982,1755798665344,-480.0,0.00021878,2]
[380515983,1755798665353,-480.0,0.00021878,2]
[380515984,1755798665362,-480.0,0.00021878,2]
[380515985,1755798665371,-1169.46,0.00021878,2]
[380515986,1755798665381,-1078.29,0.00021878,2]
[380515987,1755798665390,-480.0,0.00021887,2]
[380515988,1755798665400,-1033.16,0.00021887,2]
[380515989,1755798665409,-1678.05,0.00021887,2]
[380515990,1755798665418,-957.28,0.00021887,2]
[380515991,1755798665428,-647.49,0.00021887,2]
[380515992,1755798665438,-480.0,0.00021887,2]
[380515993,1755798665447,-1420.27,0.00021887,2]
[380515994,1755798665456,-480.0,0.00021887,2]
[380515995,1755798665465,-614.7,0.00021887,2]
[380515996,1755798665475,-1678.64,0.00021887,2]
[380515997,1755798665484,-517.14,0.00021887,2]
[380515998,1755798665494,-767.97,0.00021887,2]
[380515999,1755798665503,-1078.68,0.00021887,2]
[380516000,1755798665512,-1461.11,0.00021887,2]
[380516001,1755798665521,-480.0,0.00021887,2]
[380516002,1755798665531,-480.0,0.00021887,2]
[380516003,1755798665540,-480.0,0.00021887,2]
[380516004,1755798665549,-836.24,0.00021887,2]
[380516005,1755798665559,-793.0,0.00021887,2]
[380516006,1755798665568,-1030.12,0.00021887,2]
[380516007,1755798665577,-480.0,0.00021887,2]
[380516008,1755798665586,-670.29,0.00021887,2]
[380516009,1755798665595,-1645.94557468,0.00021888,2]
[380516010,1755798665604,-1500.0,0.00021888,2]
[380516011,1755798665613,-499.33,0.00021888,2]
[380516012,1755798665622,-480.0,0.00021888,2]
[380516013,1755798665631,-1326.62,0.00021888,2]
[380516014,1755798665640,-480.0,0.00021888,2]
[380516015,1755798665650,-480.0,0.00021888,2]
[380516016,1755798665659,-3284.89,0.00021888,2]
[380516017,1755798665668,-2041.53,0.00021888,2]
[380516018,1755798665677,-480.0,0.00021888,2]
[380516019,1755798665686,-924.89,0.00021888,2]
[380516020,1755798665696,-11152.98,0.00021888,2]
[380516021,1755798665705,-9515.28,0.00021888,2]
[380516022,1755798665714,-1197.74,0.00021888,2]
[380516023,1755798665723,-2074.83,0.00021888,2]
[380516024,1755798665732,-1000.0,0.0002189,2]
[380516025,1755798665741,-1000.0,0.0002189,2]
[380516026,1755798665750,-1000.0,0.0002189,2]
[380516027,1755798665759,-1000.0,0.0002189,2]
[380516028,1755798665768,-1000.0,0.0002189,2]
[380516029,1755798665778,-1000.0,0.0002189,2]
[380516030,1755798665787,-1000.0,0.0002189,2]
[380516031,1755798665798,-1000.0,0.0002189,2]
[380516032,1755798665807,-1000.0,0.0002189,2]
[380516033,1755798665817,-1000.0,0.0002189,2]
[380516034,1755798665826,-1000.0,0.0002189,2]
[380516035,1755798665835,-1000.0,0.0002189,2]
[380516036,1755798665844,-1000.0,0.0002189,2]
[380516037,1755798665853,-1000.0,0.0002189,2]
[380516038,1755798665862,-1000.0,0.0002189,2]
[380516039,1755798665872,-1000.0,0.0002189,2]
[380516040,1755798665882,-1000.0,0.0002189,2]
[380516041,1755798665891,-1000.0,0.0002189,2]
[380516042,1755798665900,-1000.0,0.0002189,2]
[380516043,1755798665909,-967.49319872,0.0002189,2]
[380516044,1755798665919,-187.23706098,0.0002189,2]
[380516045,1755798665929,-168.0,0.00021893,2]
[380516046,1755798665939,-151.0,0.00021917,2]
[380516047,1755798665948,-151.0,0.00021917,2]
[380516048,1755798665957,-151.0,0.00021917,2]
[380516049,1755798665966,-151.0,0.00021917,2]
[380516050,1755798665975,-151.0,0.00021917,2]
[380516051,1755798665984,-8056.79,0.00021917,2]
[380516052,1755798665993,-520.82,0.00021917,2]
[380516053,1755798666003,-520.82,0.00021917,2]
[380516054,1755798666012,-520.82,0.00021917,2]
[380516055,1755798666021,-520.82,0.00021917,2]
[380516056,1755798666031,-520.82,0.00021917,2]
[380516057,1755798666041,-520.82,0.00021917,2]
[380516058,1755798666055,-520.82,0.00021917,2]
[380516059,1755798666065,-520.82,0.00021917,2]
[380516060,1755798666074,-520.82,0.00021917,2]
[380516061,1755798666083,-222.081693,0.00021918,2]
[380516062,1755798666093,-222.081693,0.00021918,2]
[380516063,1755798666102,-222.081693,0.00021918,2]
[380516064,1755798666249,-222.081693,0.00021918,2]
[380516065,1755798666260,-222.081693,0.00021918,2]
[380516066,1755798666270,-222.081693,0.00021918,2]
[380516067,1755798666280,-222.081693,0.00021918,2]
[380516068,1755798666290,-222.081693,0.00021918,2]
[380516069,1755798666300,-1000.0,0.00021918,2]
[380516070,1755798666311,-157.30603126,0.00021918,2]
[380516071,1755798666320,-200.0,0.00021918,2]
[380516072,1755798666330,-1500.0,0.0002192,2]
[380516073,1755798666340,-1500.0,0.0002192,2]
[380516074,1755798666349,-1500.0,0.0002192,2]
[380516075,1755798666359,-1000.0,0.00021964,2]
[380516076,1755798666368,-985.62286132,0.00021964,2]
[380516077,1755798666498,-1514.37713868,0.00021964,2]
[380516078,1755798666507,-715.1305272,0.00021964,2]
[380516079,1755798666517,-2500.0,0.00021964,2]
[380516080,1755798666527,-2500.0,0.00021964,2]
[380516081,1755798666536,-2500.0,0.00021964,2]
[380516082,1755798666545,-168.0,0.00021965,2]
[380516083,1755798666555,-150.0,0.00021973,2]
[380516084,1755798666565,-480.0,0.00021987,3]
[380516085,1755798666574,-151.0,0.00021987,7]
[380516086,1755798666583,-480.0,0.00021987,3]
[380516087,1755798666593,-480.0,0.00021987,3]
[380516088,1755798666602,-723.94,0.00021987,3]
[380516089,1755798666612,-480.0,0.00021987,3]
[380516090,1755798666621,-727.19,0.00021987,3]
[380516091,1755798666631,-480.0,0.00021987,3]
[380516092,1755798666640,-480.0,0.00021987,3]
[380516093,1755798666649,-480.0,0.00021987,3]
[380516094,1755798666659,-1507.01,0.00021987,3]
[380516095,1755798666669,-492.61,0.00021987,3]
[380516096,1755798666679,-524.9,0.00021987,3]
[380516097,1755798666688,-1428.16,0.00021987,3]
[380516098,1755798666697,-872.4,0.00021987,3]
[380516099,1755798666706,-483.84,0.00021987,3]
[380516100,1755798666715,-480.0,0.00021987,3]
[380516101,1755798666724,-480.0,0.00021987,3]
[380516102,1755798666734,-480.0,0.00021987,3]
[380516103,1755798666744,-480.0,0.00021987,3]
[380516104,1755798666753,-480.0,0.00021987,3]
[380516105,1755798666763,-621.19,0.00021987,3]
[380516106,1755798666773,-618.6,0.00021987,3]
[380516107,1755798666782,-810.8,0.00021987,3]
[380516108,1755798666791,-3280.11,0.00021987,3]
[380516109,1755798666804,-480.0,0.00021987,3]
[380516110,1755798666814,-589.21,0.00021987,3]
[380516111,1755798666824,-621.55,0.00021987,3]
[380516112,1755798666834,-1495.64,0.00021987,3]
[380516113,1755798666843,-695.63,0.00021987,3]
[380516114,1755798666853,-654.93,0.00021987,3]
[380516115,1755798666863,-865.47,0.00021987,3]
[380516116,1755798666873,-3867.5,0.00021987,3]
[380516117,1755798666882,-7219.66,0.00021987,3]
[380516118,1755798666892,-951.02,0.00021987,3]
[380516119,1755798666902,-520.82,0.00021987,3]
[380516120,1755798666912,-1837.57,0.00021987,3]
[380516121,1755798666921,-818.75,0.00021987,3]
[380516122,1755798666931,-480.0,0.00021987,3]
[380516123,1755798666940,-548.67,0.00021987,3]
[380516124,1755798666949,-1521.11,0.00021987,3]
[380516125,1755798666958,-1381.99,0.00021987,3]
[380516126,1755798666967,-350.89600121,0.00021987,3]
[380516127,1755798666976,-866.39,0.00021987,3]
[380516128,1755798666986,-2767.93,0.00021987,3]
[380516129,1755798666995,-480.0,0.00021987,3]
[380516130,1755798667004,-480.0,0.00021987,3]
[380516131,1755798667013,-480.0,0.00021987,3]
[380516132,1755798667022,-151.0,0.00021988,7]
[380516133,1755798667031,-151.0,0.00021988,7]
[380516134,1755798667040,-154.555483,0.00021988,7]
[380516135,1755798667054,-556.05,0.00021988,3]
[380516136,1755798667064,-480.0,0.00021988,3]
[380516137,1755798667076,-480.0,0.00021988,3]
[380516138,1755798667095,-480.0,0.00021988,3]
[380516139,1755798667107,-494.94,0.00021988,3]
[380516140,1755798667116,-480.0,0.00021988,3]
[380516141,1755798667126,-480.0,0.00021988,2]
[380516142,1755798667135,-639.33,0.00021988,3]
[380516143,1755798667144,-480.0,0.00021988,3]
[380516144,1755798667153,-480.0,0.00021988,3]
[380516145,1755798667163,-1760.29,0.00021988,3]
[380516146,1755798667172,-480.0,0.00021988,3]
[380516147,1755798667181,-590.52,0.00021988,3]
[380516148,1755798667190,-480.0,0.00021989,3]
[380516149,1755798667199,-480.0,0.00021989,3]
[380516150,1755798667208,-480.0,0.00021989,3]
[380516151,1755798667218,-635.25,0.00021989,3]
[380516152,1755798667229,-480.0,0.00021989,3]
[380516153,1755798667239,-324.45943511,0.00021989,3]
[380516154,1755798667250,-799.42,0.00021989,3]
[380516155,1755798667262,-480.0,0.00021989,3]
[380516156,1755798667273,-480.0,0.00021989,3]
[380516157,1755798667283,-480.0,0.00021989,3]
[380516158,1755798667292,-480.0,0.00021989,3]
[380516159,1755798667302,-480.0,0.00021989,3]
[380516160,1755798667311,-622.3,0.00022,7]
[380516161,1755798667320,-3512.65,0.00022,7]
[380516162,1755798667329,-62628.88,0.00022,2]
[380516163,1755798667338,-151.0,0.00022,7]
[380516164,1755798667348,-151.0,0.00022,7]
[380516165,1755798667357,-301.0,0.00022025,2]
[380516166,1755798667366,-151.0,0.0002207,7]
[380516167,1755798667376,-1614.92795665,0.0002207,2]
[380516168,1755798667385,-168.0,0.00022076,2]
[380516169,1755798667396,-301.0,0.00022081,2]
[380516170,1755798667407,-480.0,0.00022088,3]
[380516171,1755798667420,-480.0,0.00022088,3]
[380516172,1755798667432,-480.0,0.00022088,3]
[380516173,1755798667442,-151.0,0.00022088,7]
[380516174,1755798667451,-151.0,0.00022088,7]
[380516175,1755798667460,-151.0,0.00022088,7]
[380516176,1755798667469,-151.0,0.00022088,7]
[380516177,1755798667478,-151.0,0.00022088,7]
[380516178,1755798667487,-151.0,0.00022088,7]
[380516179,1755798667495,-151.0,0.00022088,7]
[380516180,1755798667503,-151.0,0.00022088,7]
[380516181,1755798667511,-578.48,0.00022091,3]
[380516182,1755798667520,-480.0,0.00022091,3]
[380516183,1755798667531,-480.0,0.00022091,3]
[380516184,1755798667540,-160.88908195,0.00022091,3]
[380516185,1755798667551,-643.22,0.000221,2]
[380516186,1755798667560,-575.424,0.00022133,2]
[380516187,1755798667571,-360.0,0.00022144,2]
[380516188,1755798667580,-480.0,0.0002215,3]
[380516189,1755798667589,-480.0,0.00022151,3]
[380516190,1755798667598,-674.49,0.00022151,3]
[380516191,1755798667607,-862.49,0.00022151,3]
[380516192,1755798667616,-730.52,0.00022151,3]
[380516193,1755798667625,-2992.55,0.00022151,3]
[380516194,1755798667634,-609.58,0.00022152,3]
[380516195,1755798667643,-1761.08,0.00022152,3]
[380516196,1755798667652,-5081.96,0.00022152,3]
[380516197,1755798667662,-1099.74,0.00022152,3]
[380516198,1755798667671,-480.0,0.00022152,3]
[380516199,1755798667680,-480.0,0.00022152,3]
[380516200,1755798667689,-754.87,0.00022152,3]
[380516201,1755798667698,-4586.59,0.00022152,3]
[380516202,1755798667708,-4179.87,0.00022152,3]
[380516203,1755798667717,-3124.04,0.00022152,3]
[380516204,1755798667726,-595.07,0.00022152,3]
[380516205,1755798667736,-2044.44,0.00022152,3]
[380516206,1755798667745,-889.73,0.00022152,3]
[380516207,1755798667754,-2890.7,0.00022152,3]
[380516208,1755798667763,-480.0,0.00022152,3]
[380516209,1755798667772,-876.44,0.00022152,3]
[380516210,1755798667781,-480.0,0.00022152,3]
[380516211,1755798667791,-480.0,0.00022152,3]
[380516212,1755798667801,-480.0,0.00022152,3]
[380516213,1755798667810,-1169.46,0.00022152,3]
[380516214,1755798667819,-151.0,0.00022152,7]
[380516215,1755798667828,-151.0,0.00022152,7]
[380516216,1755798667836,-151.0,0.00022152,7]
[380516217,1755798667845,-292.676452,0.00022152,7]
[380516218,1755798667853,-1078.29,0.00022152,3]
[380516219,1755798667862,-480.0,0.00022161,3]
[380516220,1755798667871,-1033.16,0.00022161,3]
[380516221,1755798667880,-1678.05,0.00022161,3]
[380516222,1755798667889,-957.28,0.00022161,3]
[380516223,1755798667897,-647.49,0.00022161,3]
[380516224,1755798667906,-480.0,0.00022161,3]
[380516225,1755798667915,-1420.27,0.00022161,3]
[380516226,1755798667924,-480.0,0.00022161,3]
[380516227,1755798667933,-614.7,0.00022161,3]
[380516228,1755798667941,-1678.64,0.00022161,3]
[380516229,1755798667950,-517.14,0.00022161,3]
[380516230,1755798667959,-767.97,0.00022161,3]
[380516231,1755798667968,-1078.68,0.00022161,3]
[380516232,1755798667977,-1461.11,0.00022161,3]
[380516233,1755798667986,-480.0,0.00022161,3]
[380516234,1755798667999,-480.0,0.00022161,3]
[380516235,1755798668011,-480.0,0.00022161,3]
[380516236,1755798668020,-836.24,0.00022161,3]
[380516237,1755798668029,-793.0,0.00022161,3]
[380516238,1755798668039,-1030.12,0.00022161,3]
[380516239,1755798668053,-480.0,0.00022161,3]
[380516240,1755798668062,-670.29,0.00022161,3]
[380516241,1755798668072,-499.33,0.00022162,3]
[380516242,1755798668081,-480.0,0.00022162,3]
[380516243,1755798668091,-1326.62,0.00022162,3]
[380516244,1755798668100,-480.0,0.00022162,3]
[380516245,1755798668109,-480.0,0.00022162,3]
[380516246,1755798668119,-3284.89,0.00022162,3]
[380516247,1755798668129,-2041.53,0.00022162,3]
[380516248,1755798668138,-480.0,0.00022162,3]
[380516249,1755798668147,-924.89,0.00022162,3]
[380516250,1755798668156,-11152.98,0.00022162,3]
[380516251,1755798668165,-9515.28,0.00022162,3]
[380516252,1755798668174,-1197.74,0.00022162,3]
[380516253,1755798668182,-2074.83,0.00022162,3]
[380516254,1755798668191,-187.23706098,0.00022164,2]
[380516255,1755798668201,-318.4688872,0.00022165,2]
[380516256,1755798668210,-500.0,0.00022191,2]
[380516257,1755798668219,-1000.0,0.000222,2]
[380516258,1755798668228,-152.58231,0.00022204,10]
[380516259,1755798668237,-168.0,0.00022214,2]
[380516260,1755798668246,-301.0,0.00022214,2]
[380516261,1755798668255,-152.58231,0.00022231,7]
[380516262,1755798668264,-973.0,0.00022251,2]
[380516263,1755798668273,-2154.0,0.00022251,2]
[380516264,1755798668282,-637.0,0.00022251,2]
[380516265,1755798668292,-150.0,0.00022251,2]
[380516266,1755798668303,-150.0,0.00022251,2]
[380516267,1755798668311,-480.0,0.00022261,3]
[380516268,1755798668320,-590.22764122,0.00022261,3]
[380516269,1755798668329,-480.0,0.00022261,3]
[380516270,1755798668338,-723.94,0.00022261,3]
[380516271,1755798668347,-480.0,0.00022261,3]
[380516272,1755798668355,-727.19,0.00022261,3]
[380516273,1755798668364,-480.0,0.00022261,3]
[380516274,1755798668373,-415.10102043,0.00022261,3]
[380516275,1755798668381,-480.0,0.00022261,3]
[380516276,1755798668390,-1507.01,0.00022261,3]
[380516277,1755798668399,-492.61,0.00022261,3]
[380516278,1755798668408,-524.9,0.00022261,3]
[380516279,1755798668417,-1428.16,0.00022261,3]
[380516280,1755798668425,-872.4,0.00022261,3]
[380516281,1755798668434,-483.84,0.00022261,3]
[380516282,1755798668443,-480.0,0.00022261,3]
[380516283,1755798668451,-480.0,0.00022261,3]
[380516284,1755798668460,-480.0,0.00022261,3]
[380516285,1755798668469,-480.0,0.00022261,3]
[380516286,1755798668478,-480.0,0.00022261,3]
[380516287,1755798668487,-621.19,0.00022261,3]
[380516288,1755798668495,-618.6,0.00022261,3]
[380516289,1755798668504,-810.8,0.00022261,3]
[380516290,1755798668513,-3280.11,0.00022261,3]
[380516291,1755798668522,-480.0,0.00022261,3]
[380516292,1755798668531,-589.21,0.00022261,3]
[380516293,1755798668540,-621.55,0.00022261,3]
[380516294,1755798668550,-1495.64,0.00022261,3]
[380516295,1755798668559,-695.63,0.00022261,3]
[380516296,1755798668568,-654.93,0.00022261,3]
[380516297,1755798668577,-865.47,0.00022261,3]
[380516298,1755798668586,-3867.5,0.00022261,3]
[380516299,1755798668595,-7219.66,0.00022261,3]
[380516300,1755798668604,-951.02,0.00022261,3]
[380516301,1755798668613,-520.82,0.00022261,3]
[380516302,1755798668622,-609.335216,0.00022261,7]
[380516303,1755798668630,-609.335216,0.00022261,7]
[380516304,1755798668639,-609.335216,0.00022261,7]
[380516305,1755798668648,-1837.57,0.00022261,3]
[380516306,1755798668657,-609.335216,0.00022261,7]
[380516307,1755798668666,-151.0,0.00022261,7]
[380516308,1755798668675,-151.0,0.00022261,7]
[380516309,1755798668684,-818.75,0.00022261,3]
[380516310,1755798668693,-480.0,0.00022261,3]
[380516311,1755798668702,-548.67,0.00022261,3]
[380516312,1755798668711,-1521.11,0.00022261,3]
[380516313,1755798668719,-151.0,0.00022261,7]
[380516314,1755798668728,-1381.99,0.00022261,3]
[380516315,1755798668737,-866.39,0.00022261,3]
[380516316,1755798668746,-513.72458944,0.00022261,3]
[380516317,1755798668754,-2767.93,0.00022261,3]
[380516318,1755798668763,-480.0,0.00022261,3]
[380516319,1755798668772,-480.0,0.00022261,3]
[380516320,1755798668781,-556.05,0.00022262,3]
[380516321,1755798668789,-480.0,0.00022262,3]
[380516322,1755798668799,-194.37593972,0.00022262,3]
[380516323,1755798668808,-480.0,0.00022262,3]
[380516324,1755798668816,-494.94,0.00022262,3]
[380516325,1755798668825,-480.0,0.00022262,3]
[380516326,1755798668833,-480.0,0.00022262,2]
[380516327,1755798668842,-639.33,0.00022262,3]
[380516328,1755798668850,-480.0,0.00022262,3]
[380516329,1755798668859,-480.0,0.00022262,3]
[380516330,1755798668867,-1760.29,0.00022262,3]
[380516331,1755798668876,-480.0,0.00022262,3]
[380516332,1755798668885,-590.52,0.00022262,3]
[380516333,1755798668894,-480.0,0.00022263,3]
[380516334,1755798668902,-480.0,0.00022263,3]
[380516335,1755798668911,-480.0,0.00022263,3]
[380516336,1755798668920,-635.25,0.00022263,3]
[380516337,1755798668928,-480.0,0.00022263,3]
[380516338,1755798668938,-799.42,0.00022263,3]
[380516339,1755798668947,-480.0,0.00022263,3]
[380516340,1755798668955,-480.0,0.00022263,3]
[380516341,1755798668964,-480.0,0.00022263,3]
[380516342,1755798668974,-480.0,0.00022263,3]
[380516343,1755798668983,-480.0,0.00022263,3]
[380516344,1755798668992,-12287.85563623,0.000223,7]
[380516345,1755798669001,-151.0,0.000223,7]
[380516346,1755798669011,-151.0,0.000223,7]
[380516347,1755798669020,-151.0,0.000223,7]
[380516348,1755798669029,-151.0,0.000223,7]
[380516349,1755798669038,-160.331374,0.000223,7]
[380516350,1755798669050,-151.0,0.000223,7]
[380516351,1755798669066,-151.0,0.000223,7]
[380516352,1755798669075,-151.0,0.000223,7]
[380516353,1755798669085,-202.502448,0.000223,7]
[380516354,1755798669094,-202.502448,0.000223,7]
[380516355,1755798669104,-202.502448,0.000223,7]
[380516356,1755798669113,-202.502448,0.000223,7]
[380516357,1755798669122,-645.0,0.000223,2]
[380516358,1755798669131,-301.0,0.0002231,2]
[380516359,1755798669142,-886.44215628,0.0002233,2]
[380516360,1755798669151,-376.48468622,0.0002233,2]
[380516361,1755798669160,-1008.92533935,0.0002233,2]
[380516362,1755798669169,-2000.0,0.0002233,2]
[380516363,1755798669179,-2000.0,0.0002233,2]
[380516364,1755798669188,-1005.64626977,0.0002233,2]
[380516365,1755798669339,-2000.0,0.0002233,2]
[380516366,1755798669349,-2000.0,0.0002233,2]
[380516367,1755798669358,-2000.0,0.0002233,2]
[380516368,1755798669367,-301.0,0.00022356,2]
[380516369,1755798669376,-480.0,0.00022362,3]
[380516370,1755798669386,-480.0,0.00022362,3]
[380516371,1755798669395,-480.0,0.00022362,3]
[380516372,1755798669406,-578.48,0.00022365,3]
[380516373,1755798669416,-480.0,0.00022365,3]
[380516374,1755798669425,-480.0,0.00022365,3]
[380516375,1755798669435,-203.0,0.0002237,4]
[380516376,1755798669445,-155.0,0.00022373,3]
[380516377,1755798669455,-326.0,0.00022373,3]
[380516378,1755798669464,-326.0,0.00022373,3]
[380516379,1755798669474,-326.0,0.00022373,3]
[380516380,1755798669484,-480.0,0.00022424,3]
[380516381,1755798669494,-480.0,0.00022425,3]
[380516382,1755798669504,-674.49,0.00022425,3]
[380516383,1755798669514,-862.49,0.00022425,3]
[380516384,1755798669524,-730.52,0.00022425,3]
[380516385,1755798669534,-2992.55,0.00022425,3]
[380516386,1755798669544,-609.58,0.00022426,3]
[380516387,1755798669556,-1761.08,0.00022426,3]
[380516388,1755798669566,-5081.96,0.00022426,3]
[380516389,1755798669576,-1099.74,0.00022426,3]
[380516390,1755798669586,-480.0,0.00022426,3]
[380516391,1755798669597,-300.45999003,0.00022426,3]
[380516392,1755798669607,-754.87,0.00022426,3]
[380516393,1755798669617,-4586.59,0.00022426,3]
[380516394,1755798669627,-4179.87,0.00022426,3]
[380516395,1755798669637,-3124.04,0.00022426,3]
[380516396,1755798669647,-595.07,0.00022426,3]
[380516397,1755798669658,-2044.44,0.00022426,3]
[380516398,1755798669668,-889.73,0.00022426,3]
[380516399,1755798669678,-2890.7,0.00022426,3]
[380516400,1755798669690,-480.0,0.00022426,3]
[380516401,1755798669700,-876.44,0.00022426,3]
[380516402,1755798669710,-508.59522306,0.00022426,3]
[380516403,1755798669720,-480.0,0.00022426,3]
[380516404,1755798669730,-480.0,0.00022426,3]
[380516405,1755798669740,-1169.46,0.00022426,3]
[380516406,1755798669751,-480.0,0.00022435,3]
[380516407,1755798669761,-1033.16,0.00022435,3]
[380516408,1755798669771,-1678.05,0.00022435,3]
[380516409,1755798669782,-957.28,0.00022435,3]
[380516410,1755798669791,-151.0,0.00022435,7]
[380516411,1755798669803,-647.49,0.00022435,3]
[380516412,1755798669814,-222.081693,0.00022435,7]
[380516413,1755798669824,-222.081693,0.00022435,7]
[380516414,1755798669834,-222.081693,0.00022435,7]
[380516415,1755798669844,-222.081693,0.00022435,7]
[380516416,1755798669854,-480.0,0.00022435,3]
[380516417,1755798669863,-1420.27,0.00022435,3]
[380516418,1755798669873,-330.44107867,0.00022435,3]
[380516419,1755798669883,-614.7,0.00022435,3]
[380516420,1755798669893,-1678.64,0.00022435,3]
[380516421,1755798669902,-517.14,0.00022435,3]
[380516422,1755798669913,-767.97,0.00022435,3]
[380516423,1755798669923,-1078.68,0.00022435,3]
[380516424,1755798669933,-1461.11,0.00022435,3]
[380516425,1755798669943,-480.0,0.00022435,3]
[380516426,1755798669953,-480.0,0.00022435,3]
[380516427,1755798669963,-480.0,0.00022435,3]
[380516428,1755798669973,-836.24,0.00022435,3]
[380516429,1755798669982,-793.0,0.00022435,3]
[380516430,1755798669992,-1030.12,0.00022435,3]
[380516431,1755798670003,-480.0,0.00022435,3]
[380516432,1755798670013,-670.29,0.00022435,3]
[380516433,1755798670022,-1501.21322098,0.00022436,2]
[380516434,1755798670031,-499.33,0.00022436,3]
[380516435,1755798670041,-480.0,0.00022436,3]
[380516436,1755798670056,-1326.62,0.00022436,3]
[380516437,1755798670066,-480.0,0.00022436,3]
[380516438,1755798670075,-480.0,0.00022436,3]
[380516439,1755798670086,-3284.89,0.00022436,3]
[380516440,1755798670099,-2041.53,0.00022436,3]
[380516441,1755798670108,-480.0,0.00022436,3]
[380516442,1755798670119,-924.89,0.00022436,3]
[380516443,1755798670129,-11152.98,0.00022436,3]
[380516444,1755798670139,-9515.28,0.00022436,3]
[380516445,1755798670150,-1197.74,0.00022436,3]
[380516446,1755798670159,-2074.83,0.00022436,3]
[380516447,1755798670169,-800.0,0.00022437,2]
[380516448,1755798670180,-800.0,0.00022443,2]
[380516449,1755798670190,-152.58231,0.00022452,10]
[380516450,1755798670203,-2000.0,0.00022468,2]
[380516451,1755798670212,-2110.27141104,0.00022468,2]
[380516452,1755798670222,-2000.0,0.00022468,2]
[380516453,1755798670232,-800.0,0.00022487,2]
[380516454,1755798670242,-800.0,0.000225,2]
[380516455,1755798670251,-200.70872352,0.000225,2]
[380516456,1755798670260,-3000.0,0.00022512,2]
[380516457,1755798670271,-3000.0,0.00022512,2]
[380516458,1755798670281,-3000.0,0.00022512,2]
[380516459,1755798670292,-3000.0,0.00022512,2]
[380516460,1755798670302,-2200.0,0.00022519,2]
[380516461,1755798670312,-300.0,0.00022521,2]
[380516462,1755798670322,-151.0,0.00022534,2]
[380516463,1755798670331,-660.17333058,0.00022534,2]
[380516464,1755798670341,-480.0,0.00022535,3]
[380516465,1755798670350,-480.0,0.00022535,3]